[Event "AUT Bundesliga 2024-25"]
[Site "Austria"]
[Date "2025.04.03"]
[Round "7.2"]
[White "Kozul, Zdenko"]
[Black "Brkic, Ante"]
[Result "1/2-1/2"]
[Annotator "TA"]
[ECO "D38"]
[WhiteElo "2507"]
[BlackElo "2586"]
[PlyCount "60"]
[EventDate "2024.08.28"]
[EventType "team-tourn"]
[EventCountry "AUT"]
[SourceTitle "playchess.com"]
[Source "ChessBase"]
[SourceQuality "1"]
[TimeControl "40/5400+30:1800+30"]

{[%evp 20,60,16,30,18,0,0,0,0,0,0,0,0,0,0,0,0,0,3,0,0,0,0,0,0,0,0,0,0,0,0,0,0,0,0,0,0,0,0,0,0,0,0]} 1. d4 {[%emt 0:00:06]} Nf6 {[%emt 0:00:06]} 2. c4 {[%emt 0:00:12]} e6 {[%emt 0:00:07]} 3. Nf3 {[%emt 0:00:16]} d5 {[%emt 0:00:07]} 4. Nc3 {[%emt 0:01:11]} Bb4 {[%emt 0:00:34]} 5. Bg5 {[%emt 0:01:15]} h6 {[%emt 0:01:43]} 6. Bxf6 {[%emt 0:00:25]} Qxf6 {[%emt 0:00:05]} 7. e3 {[%emt 0:00:15]} O-O {[%emt 0:00:42]} 8. Rc1 {[%emt 0:03:45]} dxc4 {[%emt 0:02:35]} 9. Bxc4 {[%emt 0:00:16]} c5 {[%emt 0:00:06]} 10. O-O {[%emt 0:04:14]} cxd4 {[%emt 0:03:12]} 11. Nxd4 {[%emt 0:00:23]} Bd7 {[%emt 0:01:53] D38: Queen's Gambit Declined: Ragozin Defence (4 Nf3 Bb4).} 12. Qb3 {[%emt 0:02:24] The position is equal.} Nc6 {[%emt 0:05:45]} 13. Nxc6 {[%emt 0:02:03]} Bxc3 {[%emt 0:00:06]} 14. Qxb7 {[%emt 0:06:43]} Bxc6 {[%emt 0:00:41]} 15. Qxc6 {[%emt 0:00:08]} Bxb2 {[%emt 0:00:15]} 16. Rc2 {[%emt 0:00:18]} Rac8 {[%emt 0:03:00]} 17. Qa4 {[%emt 0:00:23]} Rc7 {[%emt 0:01:16]} 18. Bd3 {[%emt 0:01:04]} Rxc2 {[%emt 0:00:08] Opposite bishops and equal position} 19. Qxc2 {[%emt 0:00:08]} Qc3 {[%emt 0:00:22]} 20. Qxc3 {[%emt 0:00:11]} Bxc3 $11 {[%emt 0:00:03][%mdl 4096] Endgame KRB-KRB} 21. a4 {[%emt 0:00:14]} Rb8 {[%emt 0:00:08]} 22. Rb1 {[%emt 0:00:07]} Rxb1+ {[%emt 0:00:04]} 23. Bxb1 {[%emt 0:00:05] KB-KB} Kf8 $146 {[%emt 0:00:04]} (23... a5) 24. Kf1 {[%emt 0:00:08]} Ke7 {[%emt 0:00:04]} 25. Bd3 {[%emt 0:00:05]} a5 {[%emt 0:00:03]} 26. Ke2 {[%emt 0:00:05]} Bb4 {[%emt 0:00:05]} 27. g4 {[%emt 0:00:04]} g5 {[%emt 0:00:03]} 28. h3 {[%emt 0:00:05]} Bc3 {[%emt 0:00:03]} 29. Bb5 {[%emt 0:00:08]} Bb4 {[%emt 0:00:02]} 30. Bd3 {[%emt 0:00:07]} Bc3 {[%emt 0:00:02] A rather calm draw.   Weighted Error Value: White=0.02 (flawless) /Black=0.00 (flawless)   OK:         	White=6     	Black=10} 1/2-1/2

[Event "AUT Bundesliga 2024-25"]
[Site "Austria"]
[Date "2025.04.03"]
[Round "7.3"]
[White "Martinovic, Sasa"]
[Black "Mohr, Georg"]
[Result "1/2-1/2"]
[Annotator "TA"]
[ECO "C41"]
[WhiteElo "2549"]
[BlackElo "2385"]
[PlyCount "85"]
[EventDate "2024.08.28"]
[EventType "team-tourn"]
[EventCountry "AUT"]
[SourceTitle "playchess.com"]
[Source "ChessBase"]
[SourceQuality "1"]
[TimeControl "40/5400+30:1800+30"]

{[%evp 9,85,41,29,21,25,16,34,32,30,16,37,25,45,43,43,18,123,114,114,112,118,120,123,96,126,88,80,81,63,43,64,41,62,47,43,32,95,91,91,83,93,43,66,16,10,0,0,12,46,68,64,43,57,37,36,31,37,-16,-12,-12,-12,-14,-23,-21,-23,-109,-107,-111,-79,-70,-75,-79,-53,-47,0,0,0,-14]} 1. d4 {[%emt 0:00:01]} d6 {[%emt 0:00:14]} 2. e4 {[%emt 0:00:10]} Nf6 {[%emt 0:00:09]} 3. Nc3 {[%emt 0:00:06]} e5 {[%emt 0:01:20]} 4. Nf3 {[%emt 0:00:08]} Nbd7 {[%emt 0:00:24]} 5. a4 {[%emt 0:00:11]} Be7 {[%emt 0:01:55]} 6. a5 {[%emt 0:00:06] C41: Philidor Defence.} O-O {[%emt 0:01:25]} 7. Be2 {[%emt 0:00:04]} Re8 {[%emt 0:02:23]} 8. O-O {[%emt 0:00:10] White is slightly better.} a6 $146 {[%emt 0:02:52]} (8... exd4 9. Nxd4 Bf8 10. a6 Nc5 11. axb7 Bxb7 12. Bb5 Re7 13. Nc6 Bxc6 14. Bxc6 Rb8 {1-0 Brunello,S (2514)-Lorscheid,G (2152) Hoogeveen op 27th 2024 (7)}) 9. Re1 {[%emt 0:04:01]} h6 {[%emt 0:06:02]} 10. Bf1 {[%emt 0:06:09]} Bf8 {[%emt 0:02:55]} 11. d5 {[%emt 0:02:51]} c6 {[%emt 0:03:03]} 12. b4 {[%emt 0:21:31]} c5 {[%emt 0:15:21]} (12... Qc7 $11) 13. Ba3 $1 $16 {[%emt 0:04:06]} b5 {[%emt 0:03:26]} 14. axb6 {[%emt 0:01:18][%csl Of8] Black has a bad bishop} cxb4 {[%emt 0:00:06]} 15. Bxb4 {[%emt 0:00:39]} Qxb6 {[%emt 0:00:06]} 16. Ba5 {[%emt 0:07:19]} Qa7 {[%emt 0:00:25]} 17. Nd2 {[%emt 0:07:29]} Nc5 {[%emt 0:02:21]} 18. Nc4 {[%emt 0:01:20]} Rb8 {[%emt 0:03:29] Against Bb6} 19. Qe2 {[%emt 0:07:00]} Bd7 {[%emt 0:03:25]} 20. Reb1 {[%emt 0:01:10]} Bb5 {[%emt 0:02:37]} 21. Nxb5 {[%emt 0:02:06]} Rxb5 {[%emt 0:06:03]} 22. Bb6 {[%emt 0:01:59]} Qb8 {[%emt 0:03:46] [#]} ({Black should play} 22... Qb7 $14) 23. Rxb5 $1 {[%emt 0:05:53]} axb5 {[%emt 0:00:09]} 24. Bxc5 {[%emt 0:00:12]} bxc4 {[%emt 0:01:52]} 25. Ba7 {[%emt 0:03:39]} (25. Ba3 $16) 25... Qb2 {[%emt 0:06:41]} 26. Ra6 {[%emt 0:02:20]} ({White should try} 26. Ra4 $14) 26... Rc8 $11 {[%emt 0:04:36]} 27. f3 {[%emt 0:03:07]} Qb7 {[%emt 0:04:18]} 28. Ra5 {[%emt 0:02:31]} Be7 {[%emt 0:04:16][%cal Bf8e7,Be7d8,Bd8b6][%mdl 32] And now ...Ra8 would win.} 29. Be3 {[%emt 0:01:20] Ra7 would now be deadly.} Bd8 {[%emt 0:01:38]} 30. Ra7 {[%emt 0:00:37]} Qb5 {[%emt 0:00:52]} 31. Kh1 {[%emt 0:03:01]} Nd7 {[%emt 0:05:12]} 32. g3 {[%emt 0:01:18]} Bb6 {[%emt 0:02:39]} 33. Rb7 {[%emt 0:06:09]} (33. Rxd7 $14 Bxe3 34. Rxd6) 33... Nc5 {[%emt 0:00:45]} 34. Bxc5 {[%emt 0:02:14]} Qxc5 {[%emt 0:00:06][%csl Gb6][%cal Rc5g1]} 35. Kg2 {[%emt 0:00:05] Active counter play!} h5 {[%emt 0:02:08]} 36. Kh3 {[%emt 0:01:34][%cal Oe2c4]} Ba5 {[%emt 0:04:17]} 37. f4 {[%emt 0:01:03] [#]} (37. Kg2 $11) 37... exf4 $1 $17 {[%emt 0:02:23]} 38. Qxh5 {[%emt 0:01:11]} Rf8 {[%emt 0:00:59]} (38... g6 {simplifies} 39. Qf3 Rf8 40. Rb1 Qg1) 39. Kg2 {[%emt 0:03:12]} fxg3 {[%emt 0:00:25]} 40. hxg3 {[%emt 0:00:12]} Bc3 {[%emt 0:02:35]} 41. Qe2 {[%emt 0:02:44]} Rc8 {[%emt 0:05:28]} 42. Qh5 {[%emt 0:07:35]} Rf8 {[%emt 0:00:09]} 43. Qe2 {[%emt 0:00:05] Weighted Error Value: White=0.14 (very precise) /Black=0.14 (very precise)   Mistake:       	White=4     	Black=2      Inaccurate:     	White=1     	Black=3      OK:         	White=11    	Black=11     Best:        	White=4     	Black=4      Strong:       	White=2     	Black=1} 1/2-1/2

[Event "AUT Bundesliga 2024-25"]
[Site "Austria"]
[Date "2025.04.03"]
[Round "7.4"]
[White "Schnider, Gert"]
[Black "Bosiocic, Marin"]
[Result "0-1"]
[Annotator "TA"]
[ECO "B15"]
[WhiteElo "2368"]
[BlackElo "2522"]
[PlyCount "104"]
[EventDate "2024.08.28"]
[EventType "team-tourn"]
[EventCountry "AUT"]
[SourceTitle "playchess.com"]
[Source "ChessBase"]
[SourceQuality "1"]
[TimeControl "40/5400+30:1800+30"]

{[%evp 14,104,33,29,15,19,39,30,41,30,41,40,25,32,90,67,102,24,79,53,93,93,118,43,42,35,28,29,48,46,41,49,49,43,49,-17,-28,-63,-58,-59,-64,-60,-56,-50,-68,-75,-54,-96,-77,-118,-114,-164,-165,-165,-164,-152,-158,-173,-164,-193,-187,-215,-200,-211,-217,-193,-174,-293,-222,-221,-212,-204,-153,-269,-252,-249,-247,-258,-258,-229,-236,-274,-274,-274,-274,-338,-337,-546,-515,-623,-526,-29966,-29967]} 1. e4 {[%emt 0:00:01]} c6 {[%emt 0:00:06]} 2. d4 {[%emt 0:00:05]} d5 {[%emt 0:00:07]} 3. Nd2 {[%emt 0:00:27]} dxe4 {[%emt 0:00:07]} 4. Nxe4 {[%emt 0:00:03]} Nf6 {[%emt 0:00:06]} 5. Nxf6+ {[%emt 0:00:18]} exf6 {[%emt 0:00:04]} 6. c3 {[%emt 0:00:12]} Bd6 {[%emt 0:00:06]} 7. Bd3 {[%emt 0:00:30]} O-O {[%emt 0:00:08]} 8. Qc2 {[%emt 0:00:13]} Re8+ {[%emt 0:00:05] B15: Caro-Kann: 3 Nc3: 3...g6 and 3...dxe4 4 Nxe4 Nf6 5 Nxf6+ exf6.} 9. Ne2 {[%emt 0:00:04]} h5 {[%emt 0:00:04]} 10. Be3 {[%emt 0:01:38]} Nd7 {[%emt 0:00:08][%cal Of6f5] White has an edge.} 11. O-O-O {[%emt 0:00:39]} b5 $1 {[%emt 0:00:08][%mdl 4] now scores much better than the old 11...Nf8.} 12. d5 {[%emt 0:00:46]} c5 {[%emt 0:00:05]} 13. Bxb5 {[%emt 0:00:14]} Rb8 {[%emt 0:00:14] Black sacrificed a pawn} (13... a6 $14 14. Ba4 Re7) 14. c4 $16 {[%emt 0:00:12]} g6 {[%emt 0:01:45]} 15. Nc3 {[%emt 0:23:11]} (15. Rhe1 $16) 15... a6 $146 {[%emt 0:04:58]} (15... Re7 $1 $11) (15... Rxe3 16. fxe3 Ne5 17. Ne4 Bf5 18. Rhf1 Bxe4 19. Qxe4 f5 20. Qc2 a6 21. Bxa6 Ra8 {½-½ Kamalidenova,M (2342)-Kosakowski,J (2479) Alicante Easter op 7th 2023 (6)}) 16. Ba4 $1 {[%emt 0:00:46]} Rxe3 {[%emt 0:06:35]} 17. fxe3 {[%emt 0:00:11]} Ne5 {[%emt 0:00:06]} 18. Ne4 {[%emt 0:06:36]} ({Better is} 18. b3 $1 $16) 18... Bf5 $14 {[%emt 0:02:41]} 19. Rhf1 {[%emt 0:03:02][%cal Of1f5]} Bxe4 {[%emt 0:01:38]} (19... Ng4 20. Rxf5 gxf5 21. Nxd6 Qxd6 22. Qe2 $16 (22. Qxf5 Nxe3 23. Qf3 Nxd1 $17)) 20. Qxe4 {[%emt 0:00:08]} Rb4 {[%emt 0:00:07]} 21. b3 {[%emt 0:04:22]} f5 {[%emt 0:04:57]} 22. Qc2 {[%emt 0:01:03] a3 is the strong threat.} Ng4 {[%emt 0:00:24][%csl LRe3,LRh2]} 23. Rfe1 {[%emt 0:14:46]} Qg5 {[%emt 0:00:31]} 24. g3 {[%emt 0:26:33]} (24. Rd3 $14) 24... Nxe3 $11 {[%emt 1:17:20]} 25. Rxe3 {[%emt 0:00:20]} Qxe3+ {[%emt 0:00:00]} 26. Qd2 {[%emt 0:01:22] White is weak on the dark squares} Qe5 {[%emt 0:00:00]} 27. Kc2 {[%emt 0:05:41]} Qe4+ {[%emt 0:00:00]} 28. Kc1 {[%emt 0:01:24]} Rb8 {[%emt 0:00:00]} 29. Re1 {[%emt 0:00:43]} Qg4 {[%emt 0:00:00] Black is more active.} 30. Qe2 {[%emt 0:08:54] Black keeps a firm grip on the game.} Qg5+ {[%emt 0:00:00]} 31. Qd2 {[%emt 0:00:42]} f4 {[%emt 0:00:00]} 32. Kc2 {[%emt 0:00:46]} (32. Re4 $17 {was worth a try.}) 32... Qf5+ $19 {[%emt 0:00:00]} 33. Qd3 {[%emt 0:00:09]} Qxd3+ {[%emt 0:00:00]} (33... fxg3 34. Qxf5 gxf5 35. hxg3 $15) 34. Kxd3 {[%emt 0:00:01]} fxg3 {[%emt 0:00:00]} 35. hxg3 {[%emt 0:00:01]} Bxg3 {[%emt 0:00:00][%mdl 4096] Endgame KRB-KRB. Black is a pawn up.} 36. Re7 {[%emt 0:00:52] [#]} h4 $1 {[%emt 0:00:00][%cal Bh5h4,Bh4h3,Bh3h2][%mdl 32]} 37. Bd7 {[%emt 0:00:17]} Kf8 {[%emt 0:00:00]} 38. Re3 {[%emt 0:02:18]} f5 {[%emt 0:00:00]} 39. Ke2 {[%emt 0:00:00]} Bf4 {[%emt 0:00:00]} 40. Re6 {[%emt 0:00:05]} (40. Rf3 {was the only defense.} Bd6 41. Kf2) 40... h3 {[%emt 0:00:00] Hoping for ...h2.} 41. Kf3 {[%emt 0:01:25] [#]} h2 $1 {[%emt 0:00:00]} 42. Kg2 {[%emt 0:00:00]} Rb7 {[%emt 0:00:00]} 43. Bc8 {[%emt 0:07:16]} (43. Re8+ $17 Kf7 44. Bc6) 43... Rh7 {[%emt 0:00:00]} 44. Kh1 {[%emt 0:00:29][%cal Od5d6]} Rh3 {[%emt 0:00:00]} 45. Bxa6 {[%emt 0:01:43]} (45. Rxg6 $2 {too greedy.} Rd3 $19) 45... Rc3 {[%emt 0:00:00] ( -> ...Rc1+)} 46. Re1 {[%emt 0:00:13]} Bg3 {[%emt 0:00:00]} 47. Rd1 {[%emt 0:00:50]} Ke7 {[%emt 0:00:00]} 48. Bc8 {[%emt 0:00:40]} Kd6 {[%emt 0:00:00]} 49. Be6 {[%emt 0:01:50]} f4 {[%emt 0:00:00]} 50. Bg4 {[%emt 0:03:01]} (50. Kg2) 50... f3 {[%emt 0:00:00]} 51. a4 {[%emt 0:09:59]} f2 {[%emt 0:00:00][%cal Og3e5] ( -> ...Be5!)} 52. a5 {[%emt 0:00:21]} Be5 {[%emt 0:00:00] Weighted Error Value: White=0.42/Black=0.13 (very precise)   Mistake:       	White=7     	Black=2      Inaccurate:     	White=4     	Black=2      OK:         	White=14    	Black=22     Best:        	White=3     	Black=4      Strong:       	White=1     	Black=2} 0-1

[Event "AUT Bundesliga 2024-25"]
[Site "Austria"]
[Date "2025.04.03"]
[Round "7.5"]
[White "Livaic, Leon"]
[Black "Fahrner, Kurt"]
[Result "1-0"]
[Annotator "TA"]
[ECO "B06"]
[WhiteElo "2536"]
[BlackElo "2266"]
[PlyCount "69"]
[EventDate "2024.08.28"]
[EventType "team-tourn"]
[EventCountry "AUT"]
[SourceTitle "playchess.com"]
[Source "ChessBase"]
[SourceQuality "1"]
[TimeControl "40/5400+30:1800+30"]

{[%evp 9,69,43,47,47,51,26,38,30,72,64,79,81,86,90,94,95,122,122,142,75,77,74,83,61,82,75,79,79,73,69,67,67,63,75,76,61,56,56,70,0,2,14,66,73,58,66,268,253,253,268,507,463,867,861,960,941,1031,1031,880,814,891,847]} 1. d4 {[%emt 0:00:04]} d6 {[%emt 0:00:05]} 2. e4 {[%emt 0:00:11]} g6 {[%emt 0:00:36]} 3. Nc3 {[%emt 0:02:12]} Bg7 {[%emt 0:00:07]} 4. Be3 {[%emt 0:00:25]} a6 {[%emt 0:00:08]} 5. f4 {[%emt 0:01:47]} b5 {[%emt 0:00:40]} 6. Nf3 {[%emt 0:01:14] B06: Modern Defence.} Nd7 {[%emt 0:28:34]} 7. e5 {[%emt 0:02:35]} Nh6 {[%emt 0:06:38]} 8. Bd3 {[%emt 0:01:03] White is slightly better.} Nb6 {[%emt 0:16:13]} 9. Qe2 {[%emt 0:02:12]} Bf5 $146 {[%emt 0:11:43]} (9... O-O 10. O-O-O b4 11. Ne4 Nd5 12. Bd2 c6 13. h4 Bg4 14. h5 Bxh5 15. Rxh5 gxh5 {1-0 Povchanic,D (2471)-Irzhanov,T (2433) olm17 qual GP3 B4 email 2006}) 10. O-O-O {[%emt 0:05:33]} d5 {[%emt 0:08:14]} 11. h3 {[%emt 0:04:29]} Qd7 {[%emt 0:05:10]} 12. g4 {[%emt 0:02:47]} Bxd3 {[%emt 0:00:08]} 13. Qxd3 {[%emt 0:00:31]} f5 {[%emt 0:01:34]} 14. Nh4 {[%emt 0:08:29]} (14. g5 $142 Ng8 15. h4) 14... e6 $16 {[%emt 0:03:39]} 15. Rdg1 {[%emt 0:01:50]} Bf8 {[%emt 0:00:13]} 16. gxf5 {[%emt 0:00:56]} gxf5 {[%emt 0:05:35]} 17. Kb1 {[%emt 0:02:02]} O-O-O {[%emt 0:03:57]} 18. Bf2 {[%emt 0:02:43]} Be7 {[%emt 0:03:28]} 19. Qe2 {[%emt 0:02:54]} Rdg8 {[%emt 0:00:18]} 20. Qh5 {[%emt 0:01:29]} Bf8 {[%emt 0:00:05]} 21. Nf3 {[%emt 0:04:13] White has more active pieces. The black rooks are passive.} Qf7 {[%emt 0:03:21]} 22. Qxf7 {[%emt 0:02:39]} (22. Qh4 {is more complex.} Nc4 23. Ne2 Rxg1+ 24. Rxg1 Rg8 25. Rxg8 Qxg8 26. Qg5) 22... Nxf7 {[%emt 0:00:01]} 23. Bh4 {[%emt 0:00:12] [#]} Rg6 {[%emt 0:00:19]} 24. Bf6 {[%emt 0:02:32]} (24. Rxg6 $1 $14 hxg6 25. Ne2) 24... Rhg8 $11 {[%emt 0:00:01]} 25. Rxg6 {[%emt 0:00:07]} hxg6 {[%emt 0:01:31]} (25... Rxg6 $11 26. Ng5 Nxg5 27. fxg5 Nd7) 26. Ng5 $14 {[%emt 0:02:35]} Nxg5 {[%emt 0:00:02]} 27. fxg5 {[%emt 0:00:06]} Bg7 $2 {[%emt 0:01:07] Loses the game.} ({Black should play} 27... Nc4 $14) 28. Ne2 $18 {[%emt 0:00:20]} Bxf6 {[%emt 0:00:12]} 29. exf6 {[%emt 0:00:15][%mdl 4096] Endgame KRN-KRN} ({Not} 29. gxf6 Nd7 $16) 29... Nc4 $2 {[%emt 0:00:34]} (29... Nd7 {was necessary.} 30. Nf4 Nf8) 30. Nf4 {[%emt 0:00:24][%cal Of4g6] Strongly threatening Nxg6!. White is clearly winning.} Nd2+ {[%emt 0:00:22]} (30... Kd7 $142 31. h4 Nd2+ 32. Ka1 Ke8) 31. Kc1 {[%emt 0:00:05]} Ne4 {[%emt 0:00:10] [#]} 32. Nxg6 $1 {[%emt 0:02:05]} Nxf6 {[%emt 0:00:35]} (32... Rd8 33. f7) 33. Ne7+ {[%emt 0:00:05]} Kd7 {[%emt 0:00:10]} 34. Nxg8 {[%emt 0:02:23]} Nxg8 {[%emt 0:00:05]} 35. h4 {[%emt 0:00:04] Weighted Error Value: White=0.11 (very precise) /Black=0.51  Loses game:     	---       	Black=1      Mistake:       	White=2     	Black=3      Inaccurate:     	---       	Black=1      OK:         	White=8     	Black=8      Best:        	White=1     	Black=1} 1-0

[Event "AUT Bundesliga 2024-25"]
[Site "Austria"]
[Date "2025.04.03"]
[Round "7.6"]
[White "Krebs, Johann"]
[Black "Saric, Ante"]
[Result "0-1"]
[Annotator "TA"]
[ECO "D36"]
[WhiteElo "2231"]
[BlackElo "2490"]
[PlyCount "126"]
[EventDate "2024.08.28"]
[EventType "team-tourn"]
[EventCountry "AUT"]
[SourceTitle "playchess.com"]
[Source "ChessBase"]
[SourceQuality "1"]
[TimeControl "40/5400+30:1800+30"]

{[%evp 22,126,-8,-7,0,0,0,-8,-10,-10,-8,-14,-6,-7,-6,-9,-12,-8,0,-17,-9,-11,-10,-10,-10,-16,-17,-24,0,0,0,0,0,0,0,0,0,-18,-1,-2,-2,-2,-2,-21,-16,-16,-10,-97,-97,-98,-98,-96,-98,-95,-97,-155,-163,-170,-167,-171,-167,-278,-273,-289,-272,-338,-362,-356,-355,-354,-355,-343,-341,-521,-456,-464,-307,-293,-278,-448,-452,-459,-440,-410,-451,-459,-462,-455,-460,-417,-412,-397,-304,-447,-412,-1300,-1298,-1064,-1068,-1334,-1315,-1330,-1330,-1319,-1042,-692,-604]} 1. d4 {[%emt 0:00:03]} d5 {[%emt 0:00:05]} 2. c4 {[%emt 0:00:07]} e6 {[%emt 0:00:03]} 3. Nc3 {[%emt 0:00:51]} Be7 {[%emt 0:00:07]} 4. cxd5 {[%emt 0:02:03]} exd5 {[%emt 0:02:00]} 5. Nf3 {[%emt 0:01:32]} c6 {[%emt 0:00:27]} 6. Qc2 {[%emt 0:02:49]} Nf6 {[%emt 0:04:34]} 7. Bg5 {[%emt 0:05:16]} g6 {[%emt 0:00:56]} 8. e3 {[%emt 0:04:25]} Bf5 {[%emt 0:00:08]} 9. Bd3 {[%emt 0:02:48]} Bxd3 {[%emt 0:00:06]} 10. Qxd3 {[%emt 0:00:03]} Nbd7 {[%emt 0:00:14]} 11. O-O {[%emt 0:05:24] 11.Bh6 deserves study.} O-O {[%emt 0:01:22]} 12. Rab1 {[%emt 0:03:00]} Re8 {[%emt 0:04:02] D36: Queen's Gambit Declined: Exchange Variation: Main line (5 Bg5 c6 6 Qc2).} 13. b4 {[%emt 0:02:55]} a6 {[%emt 0:02:05]} 14. Na4 {[%emt 0:06:57]} Ne4 {[%emt 0:02:50] The position is equal.} 15. Bxe7 {[%emt 0:04:39]} Qxe7 {[%emt 0:02:08]} 16. Nc5 {[%emt 0:00:20]} Nb6 {[%emt 0:01:37]} 17. Rfc1 $146 {[%emt 0:04:43]} (17. a4 Nc4 18. a5 {½-½ Ujtelky,M-Jansa,V CSR-ch33 sf  1963 (5.5)}) 17... Kg7 {[%emt 0:03:57]} 18. a4 {[%emt 0:07:28]} Nd6 {[%emt 0:01:15]} 19. Nd2 {[%emt 0:11:02]} h5 {[%emt 0:02:14]} 20. Re1 {[%emt 0:01:46]} Nbc4 {[%emt 0:07:26]} 21. a5 {[%emt 0:03:55]} Nxd2 {[%emt 0:01:32]} 22. Qxd2 {[%emt 0:00:05]} Qg5 {[%emt 0:00:32]} 23. Qd3 {[%emt 0:03:35]} Re7 {[%emt 0:05:58]} 24. Re2 {[%emt 0:06:32]} Nf5 {[%emt 0:33:35]} 25. e4 {[%emt 0:01:35]} dxe4 {[%emt 0:07:16]} 26. Nxe4 {[%emt 0:02:00]} Qf4 {[%emt 0:02:24]} 27. g3 {[%emt 0:03:53]} Qc7 {[%emt 0:00:05]} 28. Qc3 {[%emt 0:01:25]} Rd8 {[%emt 0:02:24]} 29. d5+ {[%emt 0:03:32]} Qe5 {[%emt 0:00:21]} 30. dxc6 {[%emt 0:00:16]} Nd4 {[%emt 0:03:07]} 31. Re3 {[%emt 0:00:10]} Nxc6 {[%emt 0:00:11]} 32. Nc5 {[%emt 0:01:06]} Qxc3 {[%emt 0:00:11]} 33. Rxc3 {[%emt 0:00:03][%cal Oc5b7]} Rd2 {[%emt 0:00:42]} 34. Kg2 {[%emt 0:04:16]} (34. h4 $11 {remains equal.}) 34... Ree2 $17 {[%emt 0:01:03] Black converts the advantage convincingly.} 35. Nd3 {[%emt 0:01:12] [#]} Re3 $1 {[%emt 0:03:02] Black has more active pieces.} 36. Rd1 {[%emt 0:01:25]} Rxd1 {[%emt 0:05:55]} 37. fxe3 {[%emt 0:00:06][%mdl 4096] Endgame KRN-KRN} Rb1 {[%emt 0:00:15]} 38. Rc4 {[%emt 0:02:56] [#]} (38. Kf3 $142) 38... Rb3 $1 {[%emt 0:00:13]} 39. Nc5 {[%emt 0:00:14]} Rb2+ {[%emt 0:00:03]} ({Don't play} 39... Rxe3 40. Nxb7 Ne5 41. Rf4 $15) (39... Rxb4 40. Rxb4 Nxb4 41. Kf3 $11) 40. Kf1 {[%emt 0:01:09]} Nxb4 {[%emt 0:00:41]} (40... Rxh2 41. Nxb7 Ne5 42. Re4 $11) 41. Na4 {[%emt 0:06:49]} (41. e4 $142) 41... Rb1+ $19 {[%emt 0:01:25]} ({Not} 41... Rxh2 42. Rxb4 Ra2 43. Rc4 $16) 42. Ke2 {[%emt 0:01:09]} Nc6 {[%emt 0:00:27]} 43. Rc5 {[%emt 0:03:18]} Rb4 {[%emt 0:02:18]} 44. Nc3 {[%emt 0:00:43]} Rb2+ {[%emt 0:00:06]} 45. Kf3 {[%emt 0:01:22]} Rxh2 {[%emt 0:01:00]} 46. Ne2 {[%emt 0:02:22]} h4 {[%emt 0:00:41]} 47. g4 {[%emt 0:01:33]} (47. Nd4 $142 Nxd4+ 48. exd4) 47... Rh1 {[%emt 0:01:57]} 48. Nd4 {[%emt 0:00:22]} Rf1+ {[%emt 0:03:36]} 49. Kg2 {[%emt 0:03:41]} Rf6 {[%emt 0:01:42]} 50. Rd5 $2 {[%emt 0:00:02]} (50. Kh3) 50... Nxd4 {[%emt 0:04:11]} 51. exd4 {[%emt 0:00:14] KR-KR. Black is two pawns up.} Rf4 {[%emt 0:00:39]} 52. Kh3 {[%emt 0:00:18]} Kh6 {[%emt 0:00:49]} 53. Kxh4 {[%emt 0:02:18]} f5 {[%emt 0:00:09]} 54. Kg3 {[%emt 0:00:07]} Rxg4+ {[%emt 0:00:03]} 55. Kf3 {[%emt 0:00:05]} Kg5 {[%emt 0:01:39]} 56. Rd7 {[%emt 0:02:36]} Rg1 {[%emt 0:00:38]} 57. d5 {[%emt 0:01:33]} (57. Rxb7 $142 Ra1 58. Rb2) 57... Ra1 {[%emt 0:01:14]} 58. Rxb7 {[%emt 0:02:37]} (58. Ke3 $142 Rxa5 59. Kd4) 58... Ra3+ {[%emt 0:00:14] Black is clearly winning.} (58... Rxa5 $2 59. Rd7 $19) 59. Ke2 {[%emt 0:01:15]} Rxa5 {[%emt 0:00:11]} 60. d6 {[%emt 0:00:07]} Rd5 {[%emt 0:00:25]} 61. d7 {[%emt 0:00:03]} a5 {[%emt 0:00:19]} 62. Ke3 {[%emt 0:01:00]} a4 {[%emt 0:00:07]} 63. Ra7 {[%emt 0:00:05] [#]} a3 $1 {[%emt 0:00:10] Weighted Error Value: White=0.33/Black=0.07 (flawless)   Mistake:       	White=7     	---        Inaccurate:     	---       	Black=1      OK:         	White=20    	Black=29     Best:        	White=1     	Black=6      Strong:       	---       	Black=2} 0-1